bitfinex-derivatives/quotes_SOLF0:USTF0_20240907
["timestamp","ask_amount","ask_price","bid_price","bid_amount"]
[1725686146548,3.9524,126.54,126.51,3.9531]
[1725686146957,3.9524,126.54,126.49,24.28]
[1725686147240,3.9524,126.54,126.5,3.9533]
[1725686147442,3.90420279,126.57,126.47,24.28]
[1725686147443,3.9526,126.53,126.47,24.28]
[1725686147643,25.7052,126.56,126.49,3.9537]
[1725686147942,24.28,126.52,126.44,1.3154]
[1725686148145,5.30432728,126.51,126.44,1.3154]
[1725686148538,3.9542,126.48,126.44,1.3154]
[1725686148739,3.9542,126.48,126.44,5.2707]
[1725686149047,6.70552728,126.51,126.44,1.3154]
[1725686149642,3.9542,126.48,126.44,1.3154]
[1725686150440,1.4252,126.56,126.45,28.22232774]
[1725686150647,27.68076216,126.55,126.45,28.22232774]
[1725686150844,0.58199378,126.54,126.47,3.9543]
[1725686151455,3.9529,126.52,126.48,3.9541]
[1725686151653,3.9529,126.52,126.45,28.22232774]
[1725686152248,24.28,126.53,126.43,24.28]
[1725686152444,24.28,126.53,126.45,24.28]
[1725686152647,24.28,126.53,126.46,3.9546]
[1725686152953,24.28,126.53,126.45,24.28]
[1725686153150,3.9537,126.5,126.46,3.9546]
[1725686153856,3.954,126.49,126.45,28.235]
[1725686154046,24.28,126.53,126.43,24.28]
[1725686154247,24.28,126.51,126.41,1.3281]
[1725686154447,3.9547,126.47,126.43,3.9556]
[1725686154654,3.9547,126.47,126.42,24.28]
[1725686154850,1.3496,126.49,126.42,24.28]
[1725686155052,3.9547,126.47,126.42,28.2358]
[1725686155257,1.3496,126.49,126.42,24.28]
[1725686155449,1.3496,126.49,126.44,24.28]
[1725686155649,3.9542,126.48,126.44,28.2352]
[1725686156448,3.9542,126.48,126.45,3.9551]
[1725686156749,3.9542,126.48,126.44,24.28]
[1725686157546,3.9542,126.48,126.44,28.2353]
[1725686158054,3.9542,126.48,126.44,3.9553]
[1725686158448,3.9549,126.46,126.42,3.9559]
[1725686158648,3.9549,126.46,126.41,1.3281]
[1725686159055,3.9549,126.46,126.43,3.9557]
[1725686159257,3.9549,126.46,126.41,1.3281]
[1725686159258,3.9544,126.48,126.41,25.6081]
[1725686159557,1.3384,126.5,126.43,3.9555]
[1725686160055,3.8995081,126.49,126.43,3.9555]
[1725686160252,1.3384,126.5,126.43,3.9556]
[1725686160459,3.96281823,126.49,126.43,24.28]
[1725686161259,7.91681823,126.49,126.43,24.28]
[1725686161465,1.3384,126.5,126.45,3.9549]
[1725686161850,3.954,126.49,126.45,3.9549]
[1725686162457,1.3384,126.5,126.47,3.9542]
[1725686162660,1.3791,126.54,126.45,28.236257]
[1725686163160,3.9534,126.51,126.47,3.9544]
[1725686163961,3.953,126.52,126.48,3.954]
[1725686164153,3.953,126.52,126.46,1.296]
[1725686164362,1.3791,126.54,126.46,1.296]
[1725686164558,3.953,126.52,126.48,3.9539]
[1725686164751,1.3791,126.54,126.46,1.296]
[1725686164959,24.28,126.53,126.46,1.296]
[1725686165159,3.9536,126.5,126.47,3.9542]
[1725686165347,3.9536,126.5,126.46,1.296]
[1725686165550,3.9536,126.5,126.45,24.28]
[1725686165754,3.9536,126.5,126.46,3.9545]
[1725686165954,3.9533,126.51,126.45,24.28]
[1725686166366,3.9533,126.51,126.47,3.9543]
[1725686166549,24.28,126.53,126.41,1.4241]
[1725686166752,24.28,126.51,126.41,25.7041]
[1725686167063,24.28,126.51,126.44,3.9554]
[1725686167258,1.3576,126.5,126.41,25.7041]
[1725686167457,2.7242,126.5,126.41,25.7041]
[1725686167764,1.422,126.49,126.41,25.7041]
[1725686167960,3.9547,126.47,126.41,25.7041]
[1725686168255,4.04193977,126.48,126.41,25.7041]
[1725686168653,7.99623977,126.48,126.44,3.9553]
[1725686168854,1.422,126.49,126.41,25.7041]
[1725686169058,1.3576,126.5,126.43,24.28]
[1725686169255,5.3113,126.5,126.46,3.9545]
[1725686169661,1.3576,126.5,126.46,3.9545]
[1725686169854,1.3576,126.5,126.43,24.28]
[1725686170168,26.9891,126.55,126.45,24.28]
[1725686170465,28.3505,126.55,126.48,3.9539]
[1725686170762,28.3505,126.55,126.47,24.28]
[1725686171262,3.9526,126.53,126.49,3.9535]
[1725686172364,3.9523,126.54,126.51,3.9531]
[1725686172763,1.422,126.55,126.52,3.9526]
[1725686173060,26.908,126.6,126.51,24.28]
[1725686173456,24.28,126.58,126.49,24.28]
[1725686173967,30.37,126.59,126.48,34.38899893]
[1725686174162,30.37,126.59,126.47,1.3892]
[1725686174363,2.628,126.6,126.49,30.37]
[1725686174763,3.9518,126.56,126.52,3.9527]
[1725686175068,1.3194,126.6,126.51,30.37]
[1725686175268,3.9515,126.57,126.53,3.9525]
[1725686175465,30.37,126.58,126.47,1.3892]
[1725686175663,3.9532,126.52,126.48,3.9539]
[1725686175964,2.6262,126.6,126.46,31.7699]
[1725686175965,3.90583279,126.54,126.46,31.7699]
[1725686176156,30.37,126.56,126.47,3.9543]
[1725686176358,4.0005,126.55,126.47,3.9543]
[1725686176561,7.97196375,126.55,126.46,31.7699]
[1725686176756,7.97196375,126.55,126.46,1.3999]
[1725686176964,3.9535,126.51,126.46,5.3545]
[1725686177161,3.9535,126.51,126.46,1.3999]
[1725686177361,4.0005,126.55,126.46,31.7699]
[1725686178469,3.9531,126.52,126.48,3.9539]
[1725686179371,3.9527,126.53,126.49,3.9537]
[1725686180065,3.9529,126.52,126.49,3.9537]
[1725686180467,4.0005,126.55,126.46,31.7699]
[1725686180670,2.6876,126.55,126.46,31.7699]
[1725686181272,3.9525,126.54,126.5,3.9534]
[1725686181466,2.6876,126.55,126.5,3.9534]
[1725686181664,2.6876,126.55,126.49,3.9537]
[1725686181866,2.6876,126.55,126.46,31.7699]
[1725686182367,3.9528,126.53,126.49,3.9538]
[1725686182770,2.6876,126.55,126.49,3.9538]
[1725686183372,2.6876,126.55,126.46,31.7699]
[1725686184066,3.9524,126.54,126.49,30.37]
[1725686185275,3.9524,126.54,126.51,3.953]
[1725686185477,3.9526,126.53,126.49,30.37]
[1725686186268,3.9523,126.54,126.49,30.37]
[1725686186474,1.3381,126.63,126.53,30.37]
[1725686186673,0.5816266,126.62,126.53,30.37]
[1725686186975,0.5816266,126.62,126.55,3.9518]
[1725686186976,3.9509,126.59,126.55,3.9518]
[1725686187380,1.3381,126.63,126.55,30.37]
[1725686187577,0.581394,126.62,126.55,30.37]
[1725686187779,0.581394,126.62,126.56,3.9516]
[1725686188278,0.58128308,126.61,126.56,3.9516]
[1725686188469,3.9506,126.6,126.56,3.9516]
[1725686188670,3.9506,126.6,126.55,30.37]
[1725686189273,1.3381,126.63,126.56,3.9515]
[1725686189577,30.37,126.6,126.48,30.37]
[1725686189790,0.58130082,126.59,126.48,30.37]
[1725686190087,30.37,126.58,126.48,30.37]
[1725686190282,3.39401694,126.57,126.48,30.37]
[1725686190477,0.58173174,126.56,126.48,30.37]
[1725686190678,0.58173174,126.56,126.49,3.9538]
[1725686190875,2.8124,126.57,126.47,2.7367]
[1725686191181,0.58181024,126.56,126.47,2.7367]
[1725686191685,0.58181024,126.56,126.48,3.954]
[1725686192977,0.58181024,126.56,126.46,30.37]
[1725686193380,3.9531,126.52,126.47,3.9544]
[1725686195287,3.9533,126.51,126.48,3.9541]
[1725686195587,3.9533,126.51,126.46,30.37]
[1725686196078,3.9533,126.51,126.47,3.9542]
[1725686196277,3.9533,126.51,126.46,30.37]
[1725686197074,2.8124,126.57,126.48,30.37]
[1725686197290,0.58186594,126.56,126.48,30.37]
[1725686197684,3.9528,126.53,126.49,3.9536]
[1725686197885,2.8124,126.57,126.49,3.9536]
[1725686198082,0.58184739,126.56,126.48,30.37]
[1725686198279,0.58184739,126.56,126.48,34.324]
[1725686198787,3.9531,126.52,126.48,34.324]
[1725686199497,3.9533,126.51,126.47,3.9544]
[1725686200784,3.9536,126.5,126.46,34.3246]
[1725686200976,30.37,126.55,126.45,2.6289]
[1725686201184,0.58205314,126.54,126.45,2.6289]
[1725686201487,3.954,126.49,126.45,2.6289]
[1725686201887,3.99138802,126.52,126.45,5.293]
[1725686202090,30.37,126.55,126.45,1.338]
[1725686202291,1.3376,126.51,126.43,30.37]
[1725686202493,3.9546,126.47,126.43,34.3256]
[1725686202789,3.85811766,126.5,126.41,1.4085]
[1725686202990,3.9553,126.45,126.41,1.4085]
[1725686203294,2.8058,126.49,126.41,31.7785]
[1725686203595,2.8058,126.49,126.42,3.9559]
[1725686203893,3.95421469,126.48,126.41,31.7785]
[1725686204087,2.8058,126.49,126.41,31.7785]
[1725686204696,3.9553,126.45,126.41,35.7348]
[1725686206395,3.9555,126.44,126.41,31.7785]
[1725686207092,1.4043,126.49,126.41,1.4085]
[1725686207392,1.4043,126.49,126.43,30.37]
[1725686207587,3.9546,126.47,126.43,34.3255]
[1725686209297,3.9548,126.46,126.43,34.3255]
[1725686209594,5.45668443,126.49,126.43,34.3255]
[1725686209803,3.9547,126.47,126.43,34.3255]
[1725686210299,5.45668443,126.49,126.41,5.3645]
[1725686210805,5.45668443,126.49,126.43,3.9555]
[1725686210991,3.9546,126.47,126.41,31.7785]
[1725686211392,3.9546,126.47,126.42,3.9558]
[1725686211592,3.9548,126.46,126.42,3.9558]
[1725686212995,3.9548,126.46,126.43,3.9557]
[1725686215809,3.9548,126.46,126.42,28.2759]
[1725686216601,3.9548,126.46,126.43,3.9556]
[1725686217599,5.45668443,126.49,126.42,24.32]
[1725686218291,3.9543,126.48,126.44,3.9551]
[1725686218803,1.4043,126.49,126.41,1.4085]
[1725686219203,3.9549,126.46,126.42,3.9558]
[1725686220795,1.4043,126.49,126.41,5.3648]
[1725686221502,1.4043,126.49,126.42,24.32]
[1725686222600,1.4043,126.49,126.43,3.9556]
[1725686224711,3.9549,126.46,126.43,3.9556]
[1725686225510,3.9543,126.48,126.45,3.9551]
[1725686225806,3.9543,126.48,126.42,24.32]
[1725686226107,3.92641803,126.5,126.42,24.32]
[1725686226409,1.3376,126.51,126.42,24.32]
[1725686226611,0.58230757,126.5,126.42,24.32]
[1725686226807,1.3376,126.51,126.45,24.32]
[1725686227016,4.05310062,126.52,126.45,24.32]
[1725686227311,3.9535,126.51,126.47,3.9543]
[1725686227511,1.3656,126.55,126.47,28.2743]
[1725686227809,3.9535,126.51,126.47,28.2743]
[1725686228013,5.41860498,126.55,126.47,24.32]
[1725686228014,1.3656,126.55,126.47,24.32]
[1725686228197,0.58199172,126.54,126.47,24.32]
[1725686228398,3.9529,126.53,126.49,3.9536]
[1725686228602,3.88927117,126.54,126.49,3.9536]
[1725686228908,3.88927117,126.54,126.49,28.2736]
[1725686229307,0.58199181,126.53,126.47,3.9544]
[1725686229502,28.36865456,126.54,126.46,1.3295]
[1725686229702,0.5820035,126.53,126.46,1.3295]
[1725686229898,1.3382,126.56,126.49,24.32]
[1725686230105,0.58185942,126.55,126.49,24.32]
[1725686230306,3.9525,126.54,126.49,24.32]
[1725686230507,3.9525,126.54,126.5,3.9533]
[1725686231516,3.9526,126.53,126.49,28.2737]
[1725686231919,3.9524,126.54,126.5,3.9533]
[1725686232113,4.00214912,126.55,126.5,3.9533]
[1725686232309,3.9528,126.53,126.49,28.2738]
[1725686232509,1.3382,126.56,126.47,24.32]
[1725686232510,3.99423974,126.55,126.47,24.32]
[1725686232814,0.58196956,126.54,126.47,24.32]
[1725686233017,3.9533,126.51,126.47,28.2743]
[1725686234121,3.9533,126.51,126.48,3.954]
[1725686235316,6.72597468,126.55,126.49,28.2737]
[1725686235623,1.3382,126.56,126.5,24.32]
[1725686235918,3.9524,126.54,126.5,28.2734]
[1725686236627,3.9526,126.53,126.5,28.2734]
[1725686241414,28.33472611,126.55,126.48,3.9539]
[1725686241619,25.7074,126.55,126.46,27.0372]
[1725686241918,0.58192362,126.54,126.46,27.0372]
[1725686242123,3.9533,126.51,126.47,3.9543]
[1725686242918,30.91902443,126.55,126.46,29.6041]
[1725686243115,0.58197496,126.54,126.46,29.6041]
[1725686243924,0.58197496,126.54,126.46,25.6495]
[1725686244830,3.954,126.49,126.46,25.6495]
[1725686245727,3.9542,126.48,126.46,24.32]
[1725686247125,3.9547,126.47,126.43,3.9557]
[1725686247629,3.99320594,126.48,126.42,25.6277]
[1725686247924,24.32,126.5,126.42,25.6277]
[1725686248124,1.4254,126.5,126.42,25.6277]
[1725686248324,1.4254,126.5,126.44,24.32]
[1725686248824,1.329,126.54,126.46,24.32]
[1725686249021,1.329,126.54,126.46,28.32388508]
[1725686249326,1.329,126.54,126.46,24.32]
[1725686249734,1.329,126.54,126.47,3.9542]
[1725686250030,0.58200846,126.53,126.47,3.9542]
[1725686250431,24.90200846,126.53,126.43,1.2888]
[1725686250620,3.27692153,126.52,126.45,24.32]
[1725686250825,2.6948,126.52,126.45,24.32]
[1725686251023,3.9538,126.5,126.45,28.2749]
[1725686251529,3.9533,126.51,126.45,24.32]
[1725686251733,1.3046,126.52,126.45,24.32]
[1725686251923,1.329,126.54,126.45,28.2741319]
[1725686252128,3.9536,126.5,126.47,24.32]
[1725686253036,1.329,126.54,126.45,24.32]
[1725686253326,1.329,126.54,126.47,24.32]
[1725686253531,3.9529,126.52,126.48,3.9541]
[1725686255033,1.329,126.54,126.47,24.32]
[1725686255532,0.58200414,126.53,126.47,24.32]
[1725686255828,3.9536,126.5,126.47,24.32]
[1725686256029,1.329,126.54,126.47,24.32]
[1725686257034,3.9534,126.51,126.47,28.2744]
[1725686260441,3.9535,126.5,126.47,28.2744]
[1725686262035,3.88302443,126.55,126.49,24.32]
[1725686262236,1.3046,126.58,126.54,24.32]
[1725686262433,0.58160902,126.57,126.54,24.32]
[1725686262630,1.2882,126.61,126.56,24.32]
[1725686262834,0.58148636,126.6,126.56,24.32]
[1725686263248,3.99423327,126.62,126.56,28.2716]
[1725686263434,0.58134018,126.61,126.56,28.2716]
[1725686263638,0.58134018,126.6,126.56,28.2716]
[1725686263839,3.9508,126.59,126.56,24.32]
[1725686266743,3.9505,126.6,126.56,28.2716]
[1725686267344,3.9507,126.59,126.56,28.2716]
[1725686267745,3.9507,126.59,126.56,24.32]
[1725686268852,3.91834239,126.61,126.53,24.32]
[1725686269048,0.58137376,126.6,126.53,24.32]
[1725686269257,1.89123556,126.61,126.53,24.32]
[1725686269550,0.58143556,126.6,126.53,24.32]
[1725686270155,3.952,126.55,126.53,24.32]
[1725686270646,3.952,126.55,126.51,5.3407]
[1725686270647,3.952,126.55,126.51,29.6607]
[1725686270849,3.952,126.55,126.52,3.9528]
[1725686271047,3.952,126.55,126.51,25.7077]
[1725686271259,3.97139575,126.56,126.51,24.32]
[1725686271445,24.32,126.6,126.51,24.32]
[1725686271642,0.58171641,126.59,126.51,24.32]
[1725686272154,0.58171632,126.58,126.51,24.32]
[1725686272354,3.9526,126.53,126.5,25.6324]
[1725686278357,3.9526,126.53,126.5,29.5858]
[1725686280150,3.9527,126.53,126.48,3.9541]
[1725686280356,3.92955482,126.55,126.48,28.2741]
[1725686280558,1.341,126.56,126.48,28.2741]
[1725686280769,3.9531,126.52,126.48,28.2741]
[1725686281264,3.9537,126.5,126.48,24.32]
[1725686282455,3.87262194,126.52,126.46,25.6349]
[1725686282758,1.341,126.56,126.46,25.6349]
[1725686283066,3.9541,126.49,126.46,25.6349]
[1725686283267,24.32,126.55,126.46,25.6349]
[1725686283466,0.58210346,126.54,126.46,25.6349]
[1725686283660,3.954,126.49,126.46,25.6349]
[1725686283860,7.99965074,126.49,126.46,25.6349]
[1725686284261,3.954,126.49,126.46,25.6349]
[1725686284463,3.954,126.49,126.46,29.5896]
[1725686285059,3.9541,126.48,126.46,24.32]
[1725686285358,3.88728683,126.49,126.45,129.33521868]
[1725686285558,1.3681,126.52,126.45,129.33521868]
[1725686285765,1.88893854,126.51,126.43,24.32]
[1725686285964,1.3067,126.51,126.43,24.32]
[1725686286465,1.3067,126.51,126.43,28.2757]
[1725686286853,3.9548,126.46,126.43,28.2757]
[1725686291664,3.9548,126.46,126.43,24.32]
[1725686291859,3.98300553,126.48,126.43,24.32]
[1725686292058,25.6267,126.51,126.41,25.683]
[1725686292260,3.9556,126.44,126.41,25.683]
[1725686292460,4.00443968,126.46,126.41,25.683]
[1725686292669,25.6267,126.51,126.41,25.683]
[1725686292870,3.9556,126.44,126.41,25.683]
[1725686293272,4.00325282,126.46,126.41,24.32]
[1725686293472,25.6267,126.51,126.41,24.32]
[1725686293662,0.58259352,126.5,126.41,24.32]
[1725686293973,9.72,126.48,126.41,9.72]
[1725686294172,13.67854805,126.48,126.41,9.72]
[1725686295169,3.9557,126.44,126.41,9.72]
[1725686295773,3.9558,126.43,126.41,9.72]
[1725686295971,3.9558,126.43,126.4,28.2564]
[1725686296161,3.9558,126.43,126.4,24.3]
[1725686296363,3.9563,126.41,126.38,24.3]
[1725686296880,3.9562,126.42,126.38,28.2571]
[1725686298270,1.3305,126.46,126.38,24.3]
[1725686298473,25.6305,126.46,126.37,24.3]
[1725686298676,0.58284566,126.45,126.37,24.3]
[1725686298979,0.58284566,126.45,126.35,2.6218]
[1725686298980,3.9575,126.38,126.35,25.6354]
[1725686299668,3.9576,126.37,126.35,24.3]
[1725686299877,3.87876262,126.4,126.33,24.3]
[1725686300070,24.3,126.42,126.33,24.3]
[1725686300371,3.20775028,126.41,126.32,24.3]
[1725686300675,6.63661734,126.41,126.32,24.3]
[1725686300876,3.9584,126.35,126.32,24.3]
[1725686302670,3.9581,126.36,126.32,28.2591]
[1725686303676,7.84059185,126.37,126.33,3.9588]
[1725686303878,3.9577,126.37,126.33,3.9588]
[1725686304081,1.3374,126.4,126.32,24.3]
[1725686304283,3.9581,126.36,126.32,28.259]
[1725686304779,3.9584,126.35,126.31,3.9594]
[1725686305280,1.3374,126.4,126.33,24.3]
[1725686305485,3.9578,126.37,126.33,28.2587]
[1725686305676,1.3374,126.4,126.33,28.2587]
[1725686306181,3.9577,126.37,126.33,28.2587]
[1725686309077,3.9577,126.37,126.33,3.9587]
[1725686309276,3.9582,126.36,126.32,3.959]
[1725686309582,3.90774893,126.39,126.31,24.3]
[1725686309785,3.9581,126.36,126.32,3.9591]
[1725686309982,3.9581,126.36,126.31,24.3]
[1725686311387,3.9581,126.36,126.33,3.9586]
[1725686312991,1.2953,126.41,126.31,28.32851733]
[1725686313190,24.3,126.44,126.33,24.3]
[1725686313393,0.5831431,126.43,126.34,2.7729]
[1725686313596,28.394,126.46,126.36,24.3]
[1725686313789,0.58296677,126.45,126.36,24.3]
[1725686314089,28.394,126.46,126.37,24.3]
[1725686314289,0.58288682,126.45,126.37,24.3]
[1725686314790,28.394,126.46,126.37,24.3]
[1725686314791,28.394,126.46,126.38,3.9572]
[1725686314994,0.58286483,126.45,126.38,3.9572]
[1725686316291,0.58286483,126.45,126.37,3.9575]
[1725686316493,24.3,126.44,126.37,3.9575]
[1725686316886,3.9565,126.41,126.37,3.9575]
[1725686320891,3.9567,126.4,126.37,3.9575]
[1725686321903,3.9567,126.4,126.37,13.6875]
[1725686323093,4.037694,126.4,126.35,9.73]
[1725686323289,9.73,126.42,126.35,9.73]
[1725686323496,1.4125,126.41,126.35,9.73]
[1725686323696,1.4125,126.41,126.35,13.688]
[1725686324194,3.9572,126.39,126.35,13.688]
[1725686324495,3.9544903,126.39,126.35,9.73]
[1725686324692,3.9578,126.37,126.35,9.73]
[1725686324895,3.9578,126.37,126.34,13.6883]
[1725686327998,3.9572,126.39,126.35,13.688]
[1725686328200,3.9572,126.39,126.36,9.73]
[1725686328385,3.9572,126.39,126.31,1.3923]
[1725686328386,9.73,126.45,126.38,9.73]
[1725686328596,9.73,126.45,126.39,9.73]
[1725686329189,3.9565,126.41,126.39,9.73]
[1725686329390,9.73,126.43,126.38,9.73]
[1725686329893,24.31,126.44,126.36,3.9577]
[1725686331192,28.19878005,126.44,126.36,3.9577]
[1725686331500,28.19878005,126.44,126.35,24.31]
[1725686331501,28.19878005,126.44,126.37,3.9575]
[1725686331802,28.19878005,126.44,126.35,24.31]
[1725686332402,28.19878005,126.44,126.36,1.2873]
[1725686332998,3.9565,126.41,126.37,3.9573]
[1725686333199,3.9565,126.41,126.36,1.2873]
[1725686333498,3.9565,126.41,126.37,24.31]
[1725686334298,3.9565,126.41,126.38,3.9573]
[1725686336210,3.9565,126.41,126.37,24.31]
[1725686336211,3.88878005,126.44,126.39,24.31]
[1725686336409,4.1795,126.46,126.39,24.31]
[1725686336906,3.9559,126.43,126.39,24.31]
[1725686337513,3.9562,126.42,126.39,28.2668]
[1725686337908,4.02423634,126.44,126.37,25.6137]
[1725686338109,24.31,126.45,126.37,24.31]
[1725686338309,24.31,126.45,126.37,28.2675]
[1725686338509,0.58294442,126.44,126.37,3.9575]
[1725686339117,3.9567,126.4,126.37,3.9575]
[1725686343021,3.93676155,126.41,126.36,1.2873]
[1725686343327,4.1795,126.46,126.35,24.31]
[1725686343328,24.31,126.43,126.35,24.31]
[1725686344116,24.31,126.43,126.34,24.31]
[1725686344321,0.58314081,126.42,126.34,24.31]
[1725686344724,2.6972,126.41,126.34,24.31]
[1725686344926,4.0192,126.41,126.34,24.31]
[1725686345425,3.9577,126.37,126.34,24.31]
[1725686346024,3.95021921,126.39,126.31,1.3153]
[1725686346230,24.31,126.4,126.31,1.3153]
[1725686346726,3.9584,126.35,126.31,5.2746]
[1725686348025,4.01070403,126.36,126.31,1.3153]
[1725686348224,24.31,126.38,126.31,1.3153]
[1725686348731,28.32862406,126.38,126.31,1.3153]
[1725686348931,3.9587,126.34,126.31,1.3153]
[1725686349728,24.31,126.36,126.24,1.3891]
[1725686350027,1.4138,126.35,126.27,24.31]
[1725686351225,1.4138,126.35,126.25,1.4048]
[1725686351433,1.4138,126.35,126.27,24.31]
[1725686351827,3.9594,126.32,126.27,28.2705]
[1725686352428,3.9594,126.32,126.27,24.31]
[1725686352633,3.9594,126.32,126.28,3.89903776]
[1725686353333,3.9594,126.32,126.28,7.85943776]
[1725686354634,3.9594,126.32,126.28,3.9604]
[1725686355234,3.9591,126.33,126.29,3.9601]
[1725686355429,4.01862406,126.38,126.29,24.31]
[1725686355630,24.31,126.39,126.3,4.0453167]
[1725686355829,0.58362093,126.38,126.3,4.0453167]
[1725686356031,4.45198096,126.38,126.3,4.0453167]
[1725686356231,3.86836003,126.38,126.3,4.0453167]
[1725686356533,24.31,126.39,126.29,24.31]
[1725686356534,0.58369912,126.37,126.29,24.31]
[1725686356733,4.01529988,126.37,126.29,24.31]
[1725686356929,3.9589,126.33,126.29,28.27]
[1725686358134,3.90479794,126.35,126.25,1.4048]
[1725686358135,3.9592,126.32,126.3,9.74]
[1725686359934,3.9592,126.32,126.28,13.7003]
[1725686360533,14.99259794,126.35,126.25,1.4048]
[1725686360737,14.99259794,126.35,126.27,13.7007]
[1725686361139,3.9596,126.31,126.27,13.7007]
[1725686362840,14.99259794,126.35,126.27,9.74]
[1725686363138,14.99259794,126.35,126.29,9.74]
[1725686363340,3.959,126.33,126.31,9.74]
[1725686364140,3.9586,126.34,126.31,9.74]
[1725686365036,3.9588,126.33,126.31,9.74]
[1725686365828,3.9592,126.32,126.29,13.6999]
[1725686367031,9.74,126.33,126.23,7.04924194]
[1725686367230,9.74,126.33,126.27,9.74]
[1725686367432,1.3478,126.35,126.27,9.74]
[1725686367433,11.0878,126.35,126.27,9.74]
[1725686367648,3.9597,126.31,126.27,13.7005]
[1725686368032,3.9593,126.32,126.29,9.74]
[1725686368249,1.3478,126.35,126.29,9.74]
[1725686368740,3.959,126.33,126.3,3.9597]
[1725686368931,6.63176253,126.36,126.3,9.74]
[1725686368932,3.87096253,126.36,126.3,9.74]
[1725686369137,7.9125,126.42,126.32,9.74]
[1725686369138,3.9971,126.41,126.32,9.74]
[1725686369346,10.32369711,126.4,126.33,9.74]
[1725686369535,10.32369711,126.4,126.29,1.3128]
[1725686369536,0.58369711,126.39,126.34,9.74]
[1725686369732,3.9971,126.41,126.36,9.74]
[1725686369932,0.58346321,126.4,126.34,24.32]
[1725686370136,24.32,126.44,126.34,24.32]
[1725686370437,1.2869,126.45,126.3,1.3883]
[1725686370438,2.7102,126.45,126.38,24.32]
[1725686370638,0.58301219,126.44,126.38,24.32]
[1725686371742,2.7102,126.45,126.38,24.32]
[1725686372045,3.9557,126.43,126.38,28.2771]
[1725686372544,3.9557,126.44,126.39,3.9569]
[1725686372730,2.7102,126.45,126.39,3.9569]
[1725686372936,2.7102,126.45,126.38,24.32]
[1725686372937,2.7102,126.45,126.38,28.2771]
[1725686373236,27.0302,126.45,126.36,25.6328]
[1725686373837,3.9565,126.41,126.36,29.5906]
[1725686374838,24.32,126.41,126.3,1.3883]
[1725686375038,24.32,126.41,126.31,25.6175]
[1725686375446,3.9581,126.36,126.31,29.5769]
[1725686376047,3.9581,126.36,126.32,3.9591]
[1725686376249,3.9582,126.35,126.31,1.2975]
[1725686376945,3.9582,126.35,126.31,5.2569]
[1725686377250,3.9586,126.34,126.31,1.2975]
[1725686377445,26.9659,126.39,126.31,1.2975]
[1725686377651,0.5836384,126.38,126.31,1.2975]
[1725686377950,3.9588,126.34,126.31,1.2975]
[1725686378344,3.9588,126.34,126.24,1.3886]
[1725686378345,24.32,126.37,126.28,24.32]
[1725686379048,3.89609106,126.36,126.29,3.9601]
[1725686379750,3.9589,126.33,126.29,3.9601]
[1725686381547,3.9592,126.32,126.29,3.9601]
[1725686381844,3.89609106,126.36,126.29,3.9601]
[1725686382151,3.9588,126.34,126.29,3.9601]
[1725686382343,24.32,126.37,126.29,3.9601]
[1725686382344,3.99589273,126.37,126.3,24.32]
[1725686382543,26.9659,126.39,126.3,24.32]